fUST/lending_fUST_20250520
["ID","MTS","AMOUNT","RATE_DAILY","PERIOD"]
[361705133,1747708247086,-1146.47,0.00016428,3]
[361705134,1747708247097,-653.23,0.00016428,3]
[361705135,1747708247107,-326.61,0.00016428,3]
[361705136,1747708247117,-163.31,0.00016428,3]
[361705137,1747708247127,-489.93,0.00016428,3]
[361705138,1747708247136,-1368.11,0.00016428,3]
[361705139,1747708247147,-500.0,0.00016433,2]
[361705140,1747708247157,-500.0,0.00016433,2]
[361705141,1747708247166,-500.0,0.00016433,2]
[361705142,1747708247176,-500.0,0.00016433,2]
[361705143,1747708247186,-500.0,0.00016433,2]
[361705144,1747708247198,-500.0,0.00016433,2]
[361705145,1747708247208,-500.0,0.00016433,2]
[361705146,1747708247218,-500.0,0.00016433,2]
[361705147,1747708247229,-500.0,0.00016433,2]
[361705148,1747708247240,-500.0,0.00016433,2]
[361705149,1747708247250,-500.71535806,0.00016433,2]
[361705150,1747708247262,-500.0,0.00016433,2]
[361705151,1747708247272,-500.0,0.00016433,2]
[361705152,1747708247283,-500.0,0.00016433,2]
[361705153,1747708247294,-500.0,0.00016433,2]
[361705154,1747708247306,-500.0,0.00016433,2]
[361705155,1747708247317,-500.0,0.00016433,2]
[361705156,1747708247328,-344.11771937,0.00016433,2]
[361705157,1747708247338,-500.0,0.00016433,2]
[361705158,1747708247348,-500.0,0.00016433,2]
[361705159,1747708247358,-500.0,0.00016433,2]
[361705160,1747708247368,-500.0,0.00016433,2]
[361705161,1747708247377,-500.0,0.00016433,2]
[361705162,1747708247387,-500.0,0.00016433,2]
[361705163,1747708247397,-500.0,0.00016433,2]
[361705164,1747708247407,-500.0,0.00016433,2]
[361705165,1747708247416,-500.0,0.00016433,2]
[361705166,1747708247426,-500.0,0.00016433,2]
[361705167,1747708247436,-500.0,0.00016433,2]
[361705168,1747708247446,-500.0,0.00016433,2]
[361705169,1747708247456,-500.0,0.00016433,2]
[361705170,1747708247466,-500.0,0.00016433,2]
[361705171,1747708247475,-500.0,0.00016433,2]
[361705172,1747708247485,-500.0,0.00016433,2]
[361705173,1747708247495,-500.0,0.00016433,2]
[361705174,1747708247504,-500.0,0.00016433,2]
[361705175,1747708247514,-500.0,0.00016433,2]
[361705176,1747708247524,-572.85283048,0.00016433,2]
[361705177,1747708247534,-500.0,0.00016433,2]
[361705178,1747708247543,-500.0,0.00016433,2]
[361705179,1747708247556,-500.0,0.00016433,2]
[361705180,1747708247566,-500.0,0.00016433,2]
[361705181,1747708247575,-500.0,0.00016433,2]
[361705182,1747708247585,-500.0,0.00016433,2]
[361705183,1747708247595,-500.0,0.00016433,2]
[361705184,1747708247604,-500.0,0.00016433,2]
[361705185,1747708247614,-400.0,0.00016433,2]
[361705186,1747708247623,-500.0,0.00016433,2]
[361705187,1747708247634,-318.55097596,0.00016433,2]
[361705188,1747708247646,-500.0,0.00016433,2]
[361705189,1747708247656,-500.0,0.00016433,2]
[361705190,1747708247667,-500.0,0.00016433,2]
[361705191,1747708247676,-500.0,0.00016433,2]
[361705192,1747708247686,-500.0,0.00016433,2]
[361705193,1747708247696,-500.0,0.00016433,2]
[361705194,1747708247706,-500.0,0.00016433,2]
[361705195,1747708247716,-500.0,0.00016433,2]
[361705196,1747708247726,-500.0,0.00016433,2]
[361705197,1747708247736,-500.0,0.00016433,2]
[361705198,1747708247746,-500.0,0.00016433,2]
[361705199,1747708247756,-500.0,0.00016433,2]
[361705200,1747708247766,-500.0,0.00016433,2]
[361705201,1747708247776,-500.0,0.00016433,2]
[361705202,1747708247786,-449.5820242,0.00016433,2]
[361705203,1747708247800,-50.4179758,0.00016433,2]
[361705204,1747708247811,-500.0,0.00016433,2]
[361705205,1747708247821,-500.0,0.00016433,2]
[361705206,1747708247834,-500.0,0.00016433,2]
[361705207,1747708247845,-500.0,0.00016433,2]
[361705208,1747708247855,-500.0,0.00016433,2]
[361705209,1747708247865,-500.0,0.00016433,2]
[361705210,1747708247875,-500.0,0.00016433,2]
[361705211,1747708247885,-500.0,0.00016433,2]
[361705212,1747708247895,-321.82521638,0.00016433,2]
[361705213,1747708247906,-500.0,0.00016433,2]
[361705214,1747708247916,-500.0,0.00016433,2]
[361705215,1747708247926,-500.0,0.00016433,2]
[361705216,1747708247937,-563.11982319,0.00016433,2]
[361705217,1747708247947,-500.0,0.00016433,2]
[361705218,1747708247960,-378.26978096,0.00016433,2]
[361705276,1747709433040,-4963.54886907,0.00013562,2]
[361705277,1747709433051,-283.657454,0.00013699,2]
[361705278,1747709433062,-250.0,0.00014242,2]
[361705279,1747709433072,-821.272305,0.00014441,2]
[361705280,1747709433083,-530.0,0.00015104,2]
[361705281,1747709433094,-300.0,0.00015105,2]
[361705282,1747709433105,-382.5795556,0.00015106,2]
[361705284,1747709433115,-24900.0,0.00015106,2]
[361705285,1747709433125,-173.079423,0.00015259,2]
[361705286,1747709433136,-5900.2962109,0.00015498,2]
[361705288,1747709433146,-3329.38771344,0.000156,2]
[361705289,1747709433157,-3329.38771325,0.000156,2]
[361705291,1747709433167,-3329.38771325,0.000156,2]
[361705293,1747709433177,-250.0,0.00015802,2]
[361705295,1747709433188,-3329.38771325,0.00015934,2]
[361705297,1747709433198,-483.28525364,0.0001613,2]
[361705299,1747709433209,-151.0,0.00016179,2]
[361705301,1747709433219,-207.4,0.00016179,2]
[361705304,1747709433234,-1000.0,0.000162,3]
[361705305,1747709433244,-3329.38771325,0.00016279,2]
[361705308,1747709433255,-168.54190298,0.00016329,2]
[361705309,1747709433267,-500.0,0.00016386,2]
[361705310,1747709433278,-500.0,0.00016386,2]
[361705311,1747709433288,-500.0,0.00016386,2]
[361705312,1747709433300,-500.0,0.00016386,2]
[361705313,1747709433312,-634.13946029,0.00016386,2]
[361705314,1747709433322,-500.0,0.00016386,2]
[361705315,1747709433335,-500.0,0.00016386,2]
[361705316,1747709433345,-500.0,0.00016386,2]
[361705317,1747709433355,-500.0,0.00016386,2]
[361705318,1747709433365,-500.0,0.00016386,2]
[361705319,1747709433375,-500.0,0.00016386,2]
[361705320,1747709433385,-500.0,0.00016386,2]
[361705321,1747709433396,-500.0,0.00016386,2]
[361705322,1747709433405,-502.00260102,0.00016386,2]
[361705323,1747709433415,-500.0,0.00016386,2]
[361705324,1747709433426,-500.0,0.00016386,2]
[361705325,1747709433436,-500.0,0.00016386,2]
[361705326,1747709433447,-500.0,0.00016386,2]
[361705327,1747709433457,-333.13104128,0.00016386,2]
[361705328,1747709433466,-500.0,0.00016386,2]
[361705329,1747709433476,-500.0,0.00016386,2]
[361705330,1747709433486,-500.0,0.00016386,2]
[361705331,1747709433498,-443.3968763,0.00016386,2]
[361705332,1747709433508,-500.0,0.00016386,2]
[361705333,1747709433518,-500.0,0.00016386,2]
[361705334,1747709433529,-500.0,0.00016386,2]
[361705335,1747709433540,-500.0,0.00016386,2]
[361705336,1747709433549,-500.0,0.00016386,2]
[361705337,1747709433560,-500.0,0.00016386,2]
[361705338,1747709433570,-500.0,0.00016386,2]
[361705339,1747709433580,-500.0,0.00016386,2]
[361705340,1747709433591,-500.0,0.00016386,2]
[361705341,1747709433602,-500.0,0.00016386,2]
[361705342,1747709433612,-500.0,0.00016386,2]
[361705343,1747709433622,-441.18834051,0.00016386,2]
[361705344,1747709433632,-500.0,0.00016386,2]
[361705345,1747709433642,-500.0,0.00016386,2]
[361705346,1747709433652,-500.0,0.00016386,2]
[361705347,1747709433662,-500.0,0.00016386,2]
[361705348,1747709433672,-500.0,0.00016386,2]
[361705349,1747709433683,-500.0,0.00016386,2]
[361705350,1747709433693,-500.0,0.00016386,2]
[361705351,1747709433702,-500.0,0.00016386,2]
[361705352,1747709433713,-500.0,0.00016386,2]
[361705353,1747709433723,-500.0,0.00016386,2]
[361705354,1747709433733,-500.0,0.00016386,2]
[361705355,1747709433742,-500.0,0.00016386,2]
[361705356,1747709433752,-500.0,0.00016386,2]
[361705357,1747709433762,-500.0,0.00016386,2]
[361705358,1747709433772,-500.0,0.00016386,2]
[361705359,1747709433783,-500.0,0.00016386,2]
[361705360,1747709433793,-500.0,0.00016386,2]
[361705361,1747709433803,-1924.37886961,0.00016387,3]
[361705362,1747709433813,-10855.44867553,0.00016387,2]
[361705363,1747709433822,-5300.79574959,0.00016388,2]
[361705364,1747709433831,-2166.68,0.00016428,3]
[361705365,1747709433841,-1083.34,0.00016428,3]
[361705366,1747709433851,-541.67,0.00016428,3]
[361705367,1747709433861,-270.83,0.00016428,3]
[361705368,1747709433871,-812.52,0.00016428,3]
[361705369,1747709433881,-162.37639868,0.00016432,2]
[361705370,1747709433893,-500.0,0.00016437,2]
[361705371,1747709433903,-500.0,0.00016437,2]
[361705372,1747709433913,-258.10659415,0.00016437,2]
[361705373,1747709433923,-511.71736778,0.00016437,2]
[361705374,1747709433934,-500.0,0.00016437,2]
[361705375,1747709433945,-500.0,0.00016437,2]
[361705376,1747709433955,-490.5289452,0.00016437,2]
[361705377,1747709433964,-484.4615896,0.00016437,2]
[361705378,1747709433974,-160.0,0.00016437,2]
[361705379,1747709433984,-151.0,0.00016438,2]
[361705380,1747709433994,-500.0,0.00016438,2]
[361705381,1747709434005,-500.0,0.00016438,2]
[361705382,1747709434014,-500.0,0.00016438,2]
[361705383,1747709434024,-223.87134147,0.00016438,2]
[361705384,1747709434033,-500.0,0.00016438,2]
[361705385,1747709434043,-500.0,0.00016438,2]
[361705386,1747709434053,-151.0,0.00016438,2]
[361705387,1747709434063,-151.0,0.00016438,2]
[361705388,1747709434073,-151.0,0.00016438,2]
[361705389,1747709434083,-151.0,0.00016438,2]
[361705390,1747709434092,-151.0,0.00016438,2]
[361705391,1747709434102,-151.0,0.00016438,2]
[361705392,1747709434111,-151.0,0.00016438,2]
[361705393,1747709434121,-184.903736,0.00016438,2]
[361705394,1747709434131,-184.903736,0.00016438,2]
[361705395,1747709434141,-155.089358,0.00016438,2]
[361705396,1747709434151,-400.0,0.00016438,2]
[361705397,1747709434161,-405.33016814,0.00016438,2]
[361705398,1747709434171,-151.0,0.00016438,2]
[361705399,1747709434181,-151.0,0.00016438,2]
[361705400,1747709434191,-287.161557,0.00016438,2]
[361705401,1747709434201,-403.64978808,0.00016438,2]
[361705402,1747709434211,-506.65340141,0.00016438,2]
[361705403,1747709434222,-334.4332257,0.00016438,2]
[361705404,1747709434234,-410.50668379,0.00016438,2]
[361705405,1747709434244,-403.74443085,0.00016438,2]
[361705406,1747709434254,-400.0,0.00016438,2]
[361705407,1747709434266,-403.96778999,0.00016438,2]
[361705408,1747709434275,-442.64,0.00016438,2]
[361705409,1747709434288,-453.69908247,0.00016438,2]
[361705410,1747709434298,-430.0,0.00016438,2]
[361705411,1747709434309,-400.0,0.00016438,2]
[361705412,1747709434319,-430.0,0.00016438,2]
[361705413,1747709434329,-406.18192296,0.00016438,2]
[361705414,1747709434340,-430.0,0.00016438,2]
[361705415,1747709434350,-402.17032193,0.00016438,2]
[361705416,1747709434361,-454.73281423,0.00016438,2]
[361705417,1747709434372,-430.0,0.00016438,2]
[361705418,1747709434382,-430.0,0.00016438,2]
[361705419,1747709434392,-430.0,0.00016438,2]
[361705420,1747709434403,-453.78592043,0.00016438,2]
[361705421,1747709434413,-430.0,0.00016438,2]
[361705422,1747709434423,-324.51326619,0.00016438,2]
[361705423,1747709434433,-430.0,0.00016438,2]
[361705424,1747709434443,-408.14195522,0.00016438,2]
[361705425,1747709434454,-430.0,0.00016438,2]
[361705426,1747709434464,-430.0,0.00016438,2]
[361705427,1747709434475,-431.67683541,0.00016438,2]
[361705428,1747709434485,-166.6410457,0.00016438,2]
[361705429,1747709434496,-430.0,0.00016438,2]
[361705430,1747709434506,-430.0,0.00016438,2]
[361705431,1747709434516,-430.0,0.00016438,2]
[361705432,1747709434526,-503.47987014,0.00016438,2]
[361705433,1747709434536,-374.90971732,0.00016438,2]
[361705434,1747709434546,-430.0,0.00016438,2]
[361705435,1747709434557,-401.27672285,0.00016438,2]
[361705436,1747709434568,-410.66209425,0.00016438,2]
[361705437,1747709434578,-408.59242071,0.00016438,2]
[361705438,1747709434589,-430.0,0.00016438,2]
[361705439,1747709434599,-430.0,0.00016438,2]
[361705440,1747709434609,-207.2516467,0.00016438,2]
[361705441,1747709434619,-412.41005593,0.00016438,2]
[361705442,1747709434629,-430.0,0.00016438,2]
[361705443,1747709434639,-430.0,0.00016438,2]
[361705444,1747709434649,-403.24463783,0.00016438,2]
[361705445,1747709434658,-405.45552977,0.00016438,2]
[361705446,1747709434668,-151.0,0.00016438,2]
[361705447,1747709434678,-430.0,0.00016438,2]
[361705448,1747709434687,-151.0,0.00016438,2]
[361705449,1747709434697,-331.63736068,0.00016438,2]
[361705450,1747709434706,-402.99486542,0.00016438,2]
[361705451,1747709434716,-430.0,0.00016438,2]
[361705452,1747709434726,-451.56211529,0.00016438,2]
[361705453,1747709434736,-430.0,0.00016438,2]
[361705454,1747709434747,-361.1526868,0.00016438,2]
[361705455,1747709434757,-430.0,0.00016438,2]
[361705456,1747709434766,-588.53,0.00016438,2]
[361705457,1747709434776,-403.59947065,0.00016438,2]
[361705458,1747709434786,-452.52206794,0.00016438,2]
[361705459,1747709434796,-430.0,0.00016438,2]
[361705460,1747709434805,-452.14384119,0.00016438,2]
[361705461,1747709434815,-430.0,0.00016438,2]
[361705462,1747709434825,-304.05788189,0.00016438,2]
[361705463,1747709434836,-430.0,0.00016438,2]
[361705464,1747709434846,-321.86540982,0.00016438,2]
[361705465,1747709434856,-430.0,0.00016438,2]
[361705466,1747709434866,-402.48142326,0.00016438,2]
[361705467,1747709434875,-430.0,0.00016438,2]
[361705468,1747709434887,-430.0,0.00016438,2]
[361705469,1747709434896,-423.69982483,0.00016438,2]
[361705470,1747709434906,-404.28382579,0.00016438,2]
[361705471,1747709434916,-430.0,0.00016438,2]
[361705472,1747709434926,-430.0,0.00016438,2]
[361705473,1747709434936,-418.28092507,0.00016438,2]
[361705474,1747709434947,-151.0,0.00016438,2]
[361705475,1747709434962,-330.70590416,0.00016438,2]
[361705476,1747709434971,-151.0,0.00016438,2]
[361705477,1747709434981,-151.0,0.00016438,2]
[361705478,1747709434991,-151.0,0.00016438,2]
[361705479,1747709435000,-408.90497436,0.00016438,2]
[361705480,1747709435010,-405.53302436,0.00016438,2]
[361705481,1747709435020,-444.40049639,0.00016438,2]
[361705482,1747709435032,-412.7140923,0.00016438,2]
[361705483,1747709435041,-430.0,0.00016438,2]
[361705484,1747709435051,-430.0,0.00016438,2]
[361705485,1747709435060,-430.84700564,0.00016438,2]
[361705486,1747709435070,-430.0,0.00016438,2]
[361705487,1747709435079,-407.36378751,0.00016438,2]
[361705488,1747709435090,-430.0,0.00016438,2]
[361705489,1747709435099,-718.31,0.00016438,2]
[361705490,1747709435109,-663.36,0.00016438,2]
[361705491,1747709435118,-412.36294555,0.00016438,2]
[361705492,1747709435128,-403.14301129,0.00016438,2]
[361705493,1747709435138,-430.0,0.00016438,2]
[361705494,1747709435147,-430.0,0.00016438,2]
[361705495,1747709435158,-411.8199038,0.00016438,2]
[361705496,1747709435167,-430.0,0.00016438,2]
[361705497,1747709435179,-412.42648497,0.00016438,2]
[361705498,1747709435189,-1128.2,0.00016438,2]
[361705499,1747709435199,-408.25476898,0.00016438,2]
[361705500,1747709435209,-413.01556375,0.00016438,2]
[361705501,1747709435223,-404.82025445,0.00016438,2]
[361705502,1747709435235,-409.54682402,0.00016438,2]
[361705503,1747709435246,-430.0,0.00016438,2]
[361705504,1747709435257,-430.0,0.00016438,2]
[361705505,1747709435269,-423.8710951,0.00016438,2]
[361705506,1747709435280,-430.0,0.00016438,2]
[361705507,1747709435291,-430.0,0.00016438,2]
[361705508,1747709435303,-404.39140681,0.00016438,2]
[361705509,1747709435314,-430.0,0.00016438,2]
[361705510,1747709435508,-354.98416649,0.00016438,2]
[361705511,1747709435520,-411.56354347,0.00016438,2]
[361705512,1747709435530,-430.0,0.00016438,2]
[361705513,1747709435540,-430.0,0.00016438,2]
[361705514,1747709435551,-430.0,0.00016438,2]
[361705515,1747709435563,-415.77851754,0.00016438,2]
[361705516,1747709435573,-407.83831604,0.00016438,2]
[361705517,1747709435584,-271.60993285,0.00016438,2]
[361705518,1747709435593,-430.0,0.00016438,2]
[361705519,1747709435603,-406.00080778,0.00016438,2]
[361705520,1747709435613,-314.04921286,0.00016438,2]
[361705521,1747709435623,-402.6061905,0.00016438,2]
[361705522,1747709435633,-401.8984415,0.00016438,2]
[361705523,1747709435643,-430.0,0.00016438,2]
[361705524,1747709435654,-430.0,0.00016438,2]
[361705525,1747709435663,-430.0,0.00016438,2]
[361705526,1747709435673,-406.78145506,0.00016438,2]
[361705527,1747709435682,-430.0,0.00016438,2]
[361705528,1747709435692,-576.85715567,0.00016438,2]
[361705529,1747709435701,-404.28579584,0.00016438,2]
[361705530,1747709435710,-430.0,0.00016438,2]
[361705531,1747709435720,-430.0,0.00016438,2]
[361705532,1747709435729,-404.01956901,0.00016438,2]
[361705533,1747709435739,-404.44676771,0.00016438,2]
[361705534,1747709435748,-404.45666876,0.00016438,2]
[361705535,1747709435757,-407.74121409,0.00016438,2]
[361705536,1747709435767,-404.18820902,0.00016438,2]
[361705537,1747709435776,-402.1124176,0.00016438,2]
[361705538,1747709435785,-188.0,0.00016438,2]
[361705539,1747709435795,-430.0,0.00016438,2]
[361705540,1747709435804,-405.31900713,0.00016438,2]
[361705541,1747709435813,-400.13618975,0.00016438,2]
[361705542,1747709435823,-430.0,0.00016438,2]
[361705543,1747709435833,-416.21735678,0.00016438,2]
[361705544,1747709435842,-416.82744686,0.00016438,2]
[361705545,1747709435852,-400.66186619,0.00016438,2]
[361705546,1747709435861,-430.0,0.00016438,2]
[361705547,1747709435871,-343.19837004,0.00016438,2]
[361705548,1747709435880,-430.0,0.00016438,2]
[361705549,1747709435889,-430.0,0.00016438,2]
[361705550,1747709435899,-823.84,0.00016438,2]
[361705551,1747709435909,-531.43,0.00016438,2]
[361705552,1747709435918,-430.0,0.00016438,2]
[361705553,1747709435928,-411.91153829,0.00016438,2]
[361705554,1747709435937,-574.35974314,0.00016438,2]
[361705555,1747709435946,-430.0,0.00016438,2]
[361705556,1747709435955,-430.0,0.00016438,2]
[361705557,1747709435965,-240.42020208,0.00016438,2]
[361705558,1747709435974,-430.0,0.00016438,2]
[361705559,1747709435983,-430.0,0.00016438,2]
[361705560,1747709435993,-430.0,0.00016438,2]
[361705561,1747709436002,-430.0,0.00016438,2]
[361705562,1747709436012,-430.0,0.00016438,2]
[361705563,1747709436021,-1987.66,0.00016438,2]
[361705564,1747709436030,-430.0,0.00016438,2]
[361705565,1747709436040,-403.5394818,0.00016438,2]
[361705566,1747709436049,-415.23987964,0.00016438,2]
[361705567,1747709436058,-430.0,0.00016438,2]
[361705568,1747709436067,-430.0,0.00016438,2]
[361705569,1747709436076,-430.0,0.00016438,2]
[361705570,1747709436086,-430.0,0.00016438,2]
[361705571,1747709436096,-643.62,0.00016438,2]
[361705572,1747709436105,-435.32756588,0.00016438,2]
[361705573,1747709436114,-430.0,0.00016438,2]
[361705574,1747709436124,-430.0,0.00016438,2]
[361705575,1747709436133,-418.67094118,0.00016438,2]
[361705576,1747709436143,-430.0,0.00016438,2]
[361705577,1747709436152,-430.0,0.00016438,2]
[361705578,1747709436162,-514.36,0.00016438,2]
[361705579,1747709436171,-430.0,0.00016438,2]
[361705580,1747709436181,-403.93670139,0.00016438,2]
[361705581,1747709436190,-437.43,0.00016438,2]
[361705582,1747709436201,-430.0,0.00016438,2]
[361705583,1747709436210,-412.67648568,0.00016438,2]
[361705584,1747709436220,-582.36,0.00016438,2]
[361705585,1747709436234,-151.0,0.00016438,2]
[361705586,1747709436243,-151.0,0.00016438,2]
[361705587,1747709436252,-151.0,0.00016438,2]
[361705588,1747709436261,-430.0,0.00016438,2]
[361705589,1747709436271,-151.0,0.00016438,2]
[361705590,1747709436280,-430.0,0.00016438,2]
[361705591,1747709436290,-658.74,0.00016438,2]
[361705592,1747709436299,-430.0,0.00016438,2]
[361705593,1747709436309,-404.42995992,0.00016438,2]
[361705594,1747709436318,-405.12635362,0.00016438,2]
[361705595,1747709436327,-430.0,0.00016438,2]
[361705596,1747709436337,-430.0,0.00016438,2]
[361705597,1747709436347,-401.85422467,0.00016438,2]
[361705598,1747709436357,-430.0,0.00016438,2]
[361705599,1747709436366,-447.61,0.00016438,2]
[361705600,1747709436376,-996.16,0.00016438,2]
[361705601,1747709436386,-430.0,0.00016438,2]
[361705602,1747709436396,-559.09,0.00016438,2]
[361705603,1747709436405,-430.0,0.00016438,2]
[361705604,1747709436415,-430.36384446,0.00016438,2]
[361705605,1747709436424,-715.07,0.00016438,2]
[361705606,1747709436434,-430.0,0.00016438,2]
[361705607,1747709436445,-412.02557043,0.00016438,2]
[361705608,1747709436455,-430.0,0.00016438,2]
[361705609,1747709436465,-516.61,0.00016438,2]
[361705610,1747709436475,-1036.85,0.00016438,2]
[361705611,1747709436484,-405.01565933,0.00016438,2]
[361705612,1747709436494,-416.96866049,0.00016438,2]
[361705613,1747709436504,-995.25,0.00016438,2]
[361705614,1747709436513,-407.82212349,0.00016438,2]
[361705615,1747709436523,-639.51,0.00016438,2]
[361705616,1747709436533,-430.0,0.00016438,2]
[361705617,1747709436542,-1019.3979925,0.00016438,2]
[361705618,1747709436552,-419.00329191,0.00016438,2]
[361705619,1747709436561,-414.98312937,0.00016438,2]
[361705620,1747709436571,-358.19063476,0.00016438,2]
[361705621,1747709436580,-2059.79,0.00016438,2]
[361705622,1747709436590,-418.60254063,0.00016438,2]
[361705623,1747709436600,-1433.67,0.00016438,2]
[361705624,1747709436610,-430.0,0.00016438,2]
[361705625,1747709436619,-430.0,0.00016438,2]
[361705626,1747709436628,-513.22201278,0.00016438,2]
[361705627,1747709436637,-430.0,0.00016438,2]
[361705628,1747709436647,-221.55689897,0.00016438,2]
[361705629,1747709436656,-430.0,0.00016438,2]
[361705630,1747709436665,-430.0,0.00016438,2]
[361705631,1747709436674,-408.16829038,0.00016438,2]
[361705632,1747709436683,-430.0,0.00016438,2]
[361705633,1747709436693,-430.0,0.00016438,2]
[361705634,1747709436702,-430.0,0.00016438,2]
[361705635,1747709436711,-216.939554,0.00016438,2]
[361705636,1747709436721,-557.73,0.00016438,2]
[361705637,1747709436730,-430.0,0.00016438,2]
[361705638,1747709436741,-490.08952978,0.00016438,2]
[361705639,1747709436752,-406.79503389,0.00016438,2]
[361705640,1747709436762,-430.0,0.00016438,2]
[361705641,1747709436771,-151.0,0.00016438,2]
[361705642,1747709436781,-151.0,0.00016438,2]
[361705643,1747709436790,-151.0,0.00016438,2]
[361705644,1747709436800,-151.0,0.00016438,2]
[361705645,1747709436810,-151.0,0.00016438,2]
[361705646,1747709436819,-430.0,0.00016438,2]
[361705647,1747709436830,-151.0,0.00016438,2]
[361705648,1747709436839,-151.0,0.00016438,2]
[361705649,1747709436849,-430.0,0.00016438,2]
[361705650,1747709436858,-151.0,0.00016438,2]
[361705651,1747709436868,-151.0,0.00016438,2]
[361705652,1747709436878,-151.0,0.00016438,2]
[361705653,1747709436889,-486.19,0.00016438,2]
[361705654,1747709436900,-430.0,0.00016438,2]
[361705655,1747709436911,-1067.7,0.00016438,2]
[361705656,1747709436923,-430.0,0.00016438,2]
[361705657,1747709436933,-1339.49,0.00016438,2]
[361705658,1747709436943,-430.0,0.00016438,2]
[361705659,1747709436956,-455.74454167,0.00016438,2]
[361705660,1747709436966,-979.1,0.00016438,2]
[361705661,1747709436976,-872.34,0.00016438,2]
[361705662,1747709436987,-229.319649,0.00016438,2]
[361705663,1747709436997,-229.319649,0.00016438,2]
[361705664,1747709437006,-229.319649,0.00016438,2]
[361705665,1747709437017,-229.319649,0.00016438,2]
[361705666,1747709437027,-229.319649,0.00016438,2]
[361705667,1747709437036,-229.319649,0.00016438,2]
[361705668,1747709437045,-229.319649,0.00016438,2]
[361705669,1747709437054,-229.319649,0.00016438,2]
[361705670,1747709437063,-151.0,0.00016438,2]
[361705671,1747709437072,-430.0,0.00016438,2]
[361705672,1747709437081,-151.0,0.00016438,2]
[361705673,1747709437091,-173.079066,0.00016438,2]
[361705674,1747709437102,-430.0,0.00016438,2]
[361705675,1747709437112,-151.0,0.00016438,2]
[361705676,1747709437122,-151.0,0.00016438,2]
[361705677,1747709437133,-151.0,0.00016438,2]
[361705678,1747709437143,-672.87,0.00016438,2]
[361705679,1747709437153,-151.0,0.00016438,2]
[361705680,1747709437164,-151.0,0.00016438,2]
[361705681,1747709437174,-447.34,0.00016438,2]
[361705682,1747709437185,-430.0,0.00016438,2]
[361705683,1747709437195,-695.09,0.00016438,2]
[361705684,1747709437205,-430.0,0.00016438,2]
[361705685,1747709437214,-430.0,0.00016438,2]
[361705686,1747709437226,-783.47,0.00016438,2]
[361705687,1747709437235,-338.02063043,0.00016438,2]
[361705688,1747709437245,-456.23099047,0.00016438,2]
[361705689,1747709437254,-1197.69,0.00016438,2]
[361705690,1747709437265,-599.31,0.00016438,2]
[361705691,1747709437275,-706.77,0.00016438,2]
[361705692,1747709437284,-430.0,0.00016438,2]
[361705693,1747709437294,-453.91646313,0.00016438,2]
[361705694,1747709437305,-1144.16,0.00016438,2]
[361705695,1747709437317,-200.97508311,0.00016438,2]
[361705696,1747709437327,-454.92680083,0.00016438,2]
[361705697,1747709437338,-430.0,0.00016438,2]
[361705698,1747709437348,-175.51707574,0.00016438,2]
[361705699,1747709437358,-430.0,0.00016438,2]
[361705700,1747709437367,-430.0,0.00016438,2]
[361705701,1747709437377,-430.0,0.00016438,2]